Cogmind - Beta 16 @@@ ROGUE MODE // 2025.11.22 @ 17:28:38 Player: Lazz Result: Destroyed by G-47 Trooper with Particle Gun Performance ------------- Evolutions (2) 1000 Regions Visited (6) 1200 Robots Destroyed (62) 310 Value Destroyed (2540) 2540 Prototype IDs (0) 0 Alien Tech Used (0) 0 Bonus (676) 676 TOTAL SCORE: 5726 Bonus ------- High Alert Combat Kills 219 Follower Combat Kills 277 Entered Garrisons 200 Friendly Fire -20 Cogmind --------- Core Integrity 0/550 Matter 252/300 Energy 286/290 System Corruption 0% Temperature Cool (20) Movement Treading (170) Location -8/Materials Parts ------- > --- POWER (1) -------- Improved Deuterium Engine > --- PROPULSION (2) --- Armored Treads Armored Treads > --- UTILITY (5) ------ Improved Heat Sink Large Storage Unit Advanced Targeting Computer > --- WEAPON (3) ------- Particle Gun Assault Cannon > --- INVENTORY (15) --- Improved Deuterium Engine Armored Treads Armored Treads Armored Treads Subdweller Monowheel Improved Heat Sink Large Battery (200) Hardened Heavy Armor Plating Hardened Heavy Armor Plating System Shield Heavy Missile Launcher Heavy Missile Launcher Blade Saw Peak State ------------ > --- POWER ------------ Improved Deuterium Engine > --- PROPULSION ------- Armored Treads Armored Treads > --- UTILITY ---------- Improved Heat Sink Large Storage Unit Advanced Targeting Computer Improved Medium Armor Plating Improved Medium Armor Plating > --- WEAPON ----------- Arc Projector Arc Projector Arc Projector > --- INVENTORY -------- Light Nuclear Core Armored Treads Armored Treads Armored Treads Subdweller Monowheel Improved Heat Sink Large Battery Hardened Heavy Armor Plating Hardened Heavy Armor Plating System Shield Heavy Missile Launcher Heavy Missile Launcher Blade Saw [Rating: 41] Favorites ----------- Power Light Nuclear Core Engine Ion Engine Power Core Light Nuclear Core Propulsion Light Treads Treads Light Treads Wheel Wheel Utility Improved Heat Sink Device Improved Heat Sink Storage Large Storage Unit Processor Advanced Targeting Computer Protection Improved Medium Armor Plating Weapon Particle Gun Energy Gun Particle Gun Energy Cannon EM Pulse Cannon Ballistic Gun Gauss Rifle Ballistic Cannon Assault Cannon Launcher Heavy Missile Launcher Slashing Weapon Blade Saw Build | -11 -10 -10 -10 -8 -8 -8 ------- Run | Yrd Mat Min Sub Mat Gar Mat Slots Evolved 4 | . . . . 4 . . Power . | . . . . . . . Propulsion . | . . . . . . . Utility 3 | . . . . 3 . . Weapon 1 | . . . . 1 . . Parts Attached 63 | 8 6 . 1 8 35 5 Power 8 | 1 . . . 1 5 1 Engine 5 | 1 . . . 1 2 1 Core 3 | . . . . . 3 . Reactor . | . . . . . . . Propulsion 20 | 2 3 . 1 1 11 2 Treads 13 | 2 . . . . 9 2 Leg . | . . . . . . . Wheel 7 | . 3 . 1 1 2 . Hover . | . . . . . . . Flight . | . . . . . . . Utility 17 | 3 . . . 5 9 . Device 5 | 2 . . . 1 2 . Storage 4 | 1 . . . 2 1 . Processor 1 | . . . . 1 . . Hackware . | . . . . . . . Protection 7 | . . . . 1 6 . Artifact . | . . . . . . . Weapon 18 | 2 3 . . 1 10 2 Energy Gun 10 | . 3 . . . 6 1 Energy Cannon 1 | . . . . 1 . . Ballistic Gun 4 | 2 . . . . 2 . Ballistic Cannon 1 | . . . . . . 1 Launcher 1 | . . . . . 1 . Special Weapon . | . . . . . . . Impact Weapon . | . . . . . . . Slashing Weapon 1 | . . . . . 1 . Piercing Weapon . | . . . . . . . Special Melee Weapon . | . . . . . . . Unidentified Prototypes . | . . . . . . . Parts Lost 28 | . 1 . . 4 18 5 Power 3 | . . . . . 3 . Propulsion 8 | . 1 . . 3 4 . Utility 7 | . . . . 1 4 2 Weapon 10 | . . . . . 7 3 Highest Loss Streak 4 | . 1 . . 3 4 2 To Critical Strikes 1 | . . . . . 1 . Average Backups 10 | 3 7 8 7 8 11 13 Power . | . . . . . 1 1 Propulsion 3 | 2 5 6 5 5 2 3 Utility 4 | . 1 2 2 2 5 5 Weapon 1 | . . . . . 2 3 Tool/Special . | . . . . . . . Unused Backups 18 | 1 . . . . 4 13 Power 3 | 1 . . . . . 2 Propulsion 4 | . . . . . 1 3 Utility 9 | . . . . . 2 7 Weapon 2 | . . . . . 1 1 Tool/Special . | . . . . . . . Average Slot Usage (%) 94 | . 97 100 100 97 91 97 Engine 6 | . 14 14 14 9 2 9 Core 3 | . . . . . 5 . Treads 9 | . . . . 2 12 18 Wheel 9 | . 26 28 28 14 4 . Device 11 | . 14 14 14 16 9 9 Storage 13 | . 14 14 14 17 12 9 Processor 7 | . . . . 8 9 9 Protection 6 | . . . . . 7 17 Energy Gun 19 | . 8 28 28 18 18 19 Energy Cannon 1 | . . . . 8 . . Ballistic Gun 3 | . 19 . . . 4 . Peak Build Rating 41 | 9 12 11 11 21 35 41 Average Rating 23 | 6 10 11 10 20 26 38 On Entrance 13 | . 9 11 11 11 20 35 Avg Prop Armor Cover (%) . | . . . . . . . Naked Turns . | . . . . . . . Heaviest Build 59 | 13 17 15 15 46 59 58 Greatest Support 40 | 40 20 20 20 40 40 40 Greatest Overweight (x) 3 | 1 . . . 3 1 1 Average Overweight (x) . | . . . . 1 . 1 Largest Inventory Capacity 15 | 8 8 8 8 15 15 15 Average Capacity 13 | 7 8 8 8 10 15 15 Most Carried 15 | 8 8 8 8 11 15 15 Average Carried 11 | 3 7 8 7 8 12 14 Final Capacity 15 | 8 8 8 8 15 15 15 Final Carried 15 | 8 8 8 8 11 15 15 Class Distribution -------------------- 30% | Scavenger-Gunner 23% | Mutant 14% | Gunner 12% | Scavenger-Tank 11% | Scavenger-Mutant 7% | Tank Dominant Class ---------------- Mutant | -10/Materials Mutant | -10/Mines Mutant | -10/Subcaves Gunner | -8/Materials Scavenger-Gunner | -8/Garrison Tank | -8/Materials Resources | -11 -10 -10 -10 -8 -8 -8 ----------- Run | Yrd Mat Min Sub Mat Gar Mat Matter Collected 1114 | 300 78 . 10 95 528 103 Remotely 184 | 184 . . . . . . Salvage Created 2206 | 155 131 . 95 243 1228 354 Parts 118 | 11 6 . 2 13 58 28 Haulers Intercepted 1 | . . . . . . 1 Recyclers Shooed 1 | . 1 . . . . . Parts Field Recycled . | . . . . . . . Retrieved Matter . | . . . . . . . Parts Self-Destructed 5 | . . . 5 . . . Prevented . | . . . . . . . Parts Restored . | . . . . . . . Kills | -11 -10 -10 -10 -8 -8 -8 ------- Run | Yrd Mat Min Sub Mat Gar Mat Combat Hostiles Destroyed 49 | . 3 . 2 5 31 8 Melee 1 | . . . . . 1 . Guns 38 | . 3 . 2 3 27 3 Cannons 5 | . . . . 2 1 2 AOE 5 | . . . . . 2 3 Classes Destroyed 14 | 2 2 . . 3 4 3 Worker 4 | . . . . . . 4 Tunneler 3 | 3 . . . . . . Hauler 1 | . . . . . . 1 Recycler 1 | 1 . . . . . . Mechanic 1 | . . . . . . 1 Operator 1 | . . . . 1 . . Watcher 1 | . 1 . . . . . Swarmer 16 | . . . . 1 11 4 Cutter 3 | . . . . . 3 . Grunt 19 | . 3 . 2 3 9 2 Brawler 1 | . . . . . 1 . Sentry 8 | . . . . 1 5 2 Demolisher 1 | . . . . . 1 . Hunter 2 | . . . . . 2 . Best Kill Streak 11 | 4 1 . 2 2 4 11 Combat Bots Only 5 | . 1 . 2 2 4 5 Max Kills in Single Turn 8 | 1 1 . 1 1 2 8 Gunslinging 1 | . . . . . 1 . Exploded 2 | . . . . . 1 2 Melee 1 | . . . . . 1 . Uniques/NPCs Destroyed . | . . . . . . . Combat | -11 -10 -10 -10 -8 -8 -8 -------- Run | Yrd Mat Min Sub Mat Gar Mat Hostile Shots Fired 375 | . 19 . 1 36 245 74 Missed 103 | . 2 . 1 11 59 30 Hits 272 | . 17 . . 25 186 44 Melee 13 | . . . . . 13 . Projectile 259 | . 17 . . 25 173 44 AOE 8 | . . . . . 8 . Critical Strikes 22 | . 1 . . 2 18 1 Damage Taken 4494 | . 230 . . 385 3245 634 Core 635 | . 77 . . 76 401 81 Absorbed by Shields 13 | . . . . . 13 . Core Remaining (%) 84 | 100 . . 69 . . . Volleys Fired 139 | 10 16 . 3 11 81 18 Largest 3 | 2 2 . 2 3 3 3 Hottest 195 | 40 130 . 105 168 195 165 Shots Fired 344 | 20 32 . 6 33 209 44 Gun 309 | 20 32 . 6 22 200 29 Cannon 33 | . . . . 11 7 15 Launcher 2 | . . . . . 2 . Special . | . . . . . . . Kinetic 114 | 20 30 . . . 49 15 Thermal 143 | . 2 . 6 22 109 4 Explosive 2 | . . . . . 2 . Electromagnetic 85 | . . . . 11 49 25 Robot Hit Streak 22 | 17 22 . 3 8 9 7 Robot Miss Streak 3 | . 3 . 2 2 3 3 Penetration Max . | . . . . . . . Secondary Targets 6 | . . . . . 6 . Max Gunslinging Chain 1 | . . . . . 1 . Shots Hit Robots 256 | 17 21 . 3 22 166 27 Core Hits 122 | 8 9 . 3 11 73 18 Critical Kills 1 | . 1 . . . . . Critical Parts Destroyed . | . . . . . . . Critical Strikes 8 | . 1 . . . 6 1 Burn 4 | . . . . . 3 1 Destroy 1 | . 1 . . . . . Sever 3 | . . . . . 3 . Melee Attacks 36 | . . . . . 36 . Impact . | . . . . . . . Slashing 36 | . . . . . 36 . Piercing . | . . . . . . . Sneak Attacks . | . . . . . . . Combat Hostiles . | . . . . . . . Follow-up Attacks . | . . . . . . . Damage Inflicted 5051 | 145 195 . 54 410 2776 1471 Guns 2940 | 145 190 . 54 229 2082 240 Cannons 526 | . . . . 181 92 253 Explosions 1107 | . . . . . 129 978 Melee 473 | . . . . . 473 . Ramming 5 | . 5 . . . . . Kinetic 1197 | 145 172 . . . 627 253 Thermal 2592 | . 18 . 54 229 1264 1027 Explosive 48 | . . . . . 48 . Electromagnetic 736 | . . . . 181 364 191 Impact . | . . . . . . . Slashing 473 | . . . . . 473 . Piercing . | . . . . . . . Highest Corruption . | . . . . . . . Average Corruption . | . . . . . . . Corruption Purged . | . . . . . . . Corruption Blocked . | . . . . . . . Overload Shots . | . . . . . . . Overflow Damage 157 | . . . . . 3 154 Projectiles . | . . . . . . . Explosions 154 | . . . . . . 154 Melee 3 | . . . . . 3 . Knockbacks 2 | . . . . . . 2 Impact . | . . . . . . . Kinetic 2 | . . . . . . 2 Secondary . | . . . . . . . Self-Inflicted Damage 65 | . 2 . . . 18 45 Shots 2 | . . . . . 1 1 Rammed 3 | . 2 . . . . 1 Targets Rammed 3 | . 2 . . . . 1 Kicked . | . . . . . . . Crushed . | . . . . . . . Highest Temperature 364 | . 69 . 30 159 364 301 Average Temperature 108 | . 16 . 25 59 131 88 Received Heat Transfer 1638 | . 147 . . 210 1011 270 Effects 7 | . . . . . 7 . Energy Bleed 1 | . . . . . 1 . Interference 6 | . . . . . 6 . Siege Activations . | . . . . . . . Martial Activations . | . . . . . . . Shielding Activations . | . . . . . . . Robots Disrupted 1 | . . . . . 1 . Combat Hostiles 1 | . . . . . 1 . Robots Corrupted . | . . . . . . . Combat Hostiles . | . . . . . . . Parts Fried 2 | . . . . . 2 . Impact Corruptions . | . . . . . . . Robots Melted . | . . . . . . . Combat Hostiles . | . . . . . . . Parts Melted 7 | . . . . 1 6 . Heat Transferred 4696 | . 37 . 124 534 3016 985 Parts Sabotaged . | . . . . . . . Parts Stolen . | . . . . . . . Parts Stripped . | . . . . . . . Power Chain Reactions 2 | . . . . . 1 1 Alert | -11 -10 -10 -10 -8 -8 -8 ------- Run | Yrd Mat Min Sub Mat Gar Mat Maximum Alert Level 4 | . . . . . 4 3 Low Security (%) 44 | 100 100 100 . 100 27 . Level 1 16 | . . . . . 28 . Level 2 28 | . . . . . 27 96 Level 3 7 | . . . . . 12 3 Level 4 2 | . . . . . 4 . Level 5 . | . . . . . . . High Security . | . . . . . . . Max Security . | . . . . . . . Peak Influence 1184 | 15 30 . . 176 1184 760 Initial 577 | . . . . . 109 577 Average 347 | 2 14 . . 28 470 516 Influence Increases 2200 | 20 84 . 58 304 1315 419 Destroy 0b10 Robot/C 1160 | . 60 . 40 200 700 160 Destroy 0b10 Robot/NC 70 | 20 5 . . 10 5 30 Destroy Leader 174 | . 12 . 10 60 40 52 Allied During Kill 47 | . . . 8 27 12 . Successful Hack 21 | . 7 . . 7 7 . Disable Machine 120 | . . . . . . 120 Anti-Garrison Action 400 | . . . . . 400 . Destroy Structure 58 | . . . . . 46 12 Lose Combat Pursuer 150 | . . . . . 105 45 Influence Decreases 1460 | 20 84 . 58 136 299 863 Entered New Map 666 | . . . . . 59 607 Time Decay 439 | 20 84 . 58 71 . 206 Lost Part 270 | . . . . 40 180 50 Lost Ally 80 | . . . . 20 60 . Purge Threat 5 | . . . . 5 . . Squads Dispatched 6 | . 1 . . 3 . 2 Investigation 1 | . . . . 1 . . Extermination . | . . . . . . . Reinforcement 2 | . 1 . . . . 1 Assault . | . . . . . . . Garrison 3 | . . . . 2 . 1 Intercept . | . . . . . . . Searches Triggered . | . . . . . . . Construction Impeded 1 | . . . . . . 1 Haulers Reinforced . | . . . . . . . Active Scanning Responses . | . . . . . . . Cargo Convoy Interrupts . | . . . . . . . Stealth | -11 -10 -10 -10 -8 -8 -8 --------- Run | Yrd Mat Min Sub Mat Gar Mat Distress Signals 2 | . . . . 1 . 1 Communications Jammed . | . . . . . . . Distress Signals . | . . . . . . . Times Spotted 82 | . 4 . 3 13 45 17 Peak Tracking Total 8 | . 3 . 2 4 7 8 Tactical Retreats 8 | . . . . . 6 2 Traps | -11 -10 -10 -10 -8 -8 -8 ------- Run | Yrd Mat Min Sub Mat Gar Mat Traps Triggered 14 | . . . . . 14 . Indirectly . | . . . . . . . Trap Hack Attempts . | . . . . . . . Triggered . | . . . . . . . Disarmed . | . . . . . . . Reprogrammed . | . . . . . . . Reused . | . . . . . . . Traps Extracted . | . . . . . . . Installed . | . . . . . . . Triggered . | . . . . . . . Machines | -11 -10 -10 -10 -8 -8 -8 ---------- Run | Yrd Mat Min Sub Mat Gar Mat Machines Disabled 12 | . . . . . 4 8 Max in Single Turn 8 | . . . . . 2 8 Garrison Relay 5 | . . . . . 5 . Machines Repaired . | . . . . . . . Machines Dismantled . | . . . . . . . Machines Sabotaged . | . . . . . . . Overloaded Fab Kills . | . . . . . . . Hacking | -11 -10 -10 -10 -8 -8 -8 --------- Run | Yrd Mat Min Sub Mat Gar Mat Machines Accessed 9 | . 2 . 2 2 3 . Terminals 6 | . 2 . . 1 3 . Fabricators . | . . . . . . . Repair Stations . | . . . . . . . Recycling Units . | . . . . . . . Scanalyzers . | . . . . . . . Garrison Access 1 | . . . . 1 . . Total Hacks 16 | . 4 . 2 4 6 . Successful 11 | . 3 . 2 4 2 . Failed 5 | . 1 . . . 4 . Catastrophic 2 | . . . . . 2 . Database Lockouts . | . . . . . . . Manual 3 | . 2 . . 1 . . Terminals 13 | . 4 . . 3 6 . Fabricators . | . . . . . . . Repair Stations . | . . . . . . . Recycling Units . | . . . . . . . Scanalyzers . | . . . . . . . Garrison Access 1 | . . . . 1 . . Terminal Hacks 10 | . 3 . 2 3 2 . Record 1 | . . . 1 . . . Part Schematic 2 | . 1 . . 1 . . Open Door 2 | . . . 1 . 1 . Branch Access Points 2 | . 1 . . 1 . . Emergency Access Points 1 | . . . . . 1 . Scanalyzer Index 1 | . 1 . . . . . Unreport Threat 1 | . . . . 1 . . Fabricator Hacks . | . . . . . . . Repair Station Hacks . | . . . . . . . Recycling Unit Hacks . | . . . . . . . Scanalyzer . | . . . . . . . Garrison Access Hacks 1 | . . . . 1 . . Unlock Access 1 | . . . . 1 . . Unauthorized Hacks . | . . . . . . . Terminals . | . . . . . . . Fabricators . | . . . . . . . Repair Stations . | . . . . . . . Recycling Units . | . . . . . . . Scanalyzers . | . . . . . . . Garrison Access . | . . . . . . . Data Cores Recovered 1 | . . . . 1 . . Used 1 | . . . . 1 . . Hacking Detections 5 | . 2 . . 1 2 . Full Trace Events 1 | . . . . 1 . . Feedback Events . | . . . . . . . Feedback Blocked . | . . . . . . . Robot Schematics Acquired . | . . . . . . . Robots Built . | . . . . . . . Authchips . | . . . . . . . Time . | . . . . . . . Total Robot Build Rating . | . . . . . . . Part Schematics Acquired 2 | . 1 . . 1 . . Parts Built . | . . . . . . . Authchips . | . . . . . . . Time . | . . . . . . . Total Part Build Rating . | . . . . . . . Part Studies Acquired . | . . . . . . . Parts Repaired . | . . . . . . . Time . | . . . . . . . Parts Recycled . | . . . . . . . Recycled Matter . | . . . . . . . Retrieved Matter . | . . . . . . . Retrieved Components . | . . . . . . . Parts Scanalyzed . | . . . . . . . Part Schematics Acquired . | . . . . . . . Parts Damaged . | . . . . . . . Bothacking | -11 -10 -10 -10 -8 -8 -8 ------------ Run | Yrd Mat Min Sub Mat Gar Mat Used RIF Installer . | . . . . . . . Robots Hacked . | . . . . . . . Non-combat . | . . . . . . . Combat . | . . . . . . . Robot Hacks Applied . | . . . . . . . Relay Couplers Released 18 | . . . . . 18 . Machine Destruction 18 | . . . . . 18 . Fabnet Peak Effective % . | . . . . . . . Robots Rewired 1 | . . . . . 1 . Allies Hacked . | . . . . . . . Hacks Repelled . | . . . . . . . Allies | -11 -10 -10 -10 -8 -8 -8 -------- Run | Yrd Mat Min Sub Mat Gar Mat Total Allies 6 | . . 3 . . 3 . Largest Group 3 | . . 3 3 3 2 . Highest-Rated Group 51 | . . 40 40 40 51 . Highest-Rated Ally 31 | . . 16 16 16 31 . Initial Warlord ECA Mod 7 | . . . . . . 7 Total Orders . | . . . . . . . Ally Attacks 64 | . . . 15 37 12 . Total Damage 748 | . . . 120 433 195 . Kills 12 | . . . 1 7 4 . Allies Corrupted . | . . . . . . . Allies Melted . | . . . . . . . Intel | -11 -10 -10 -10 -8 -8 -8 ------- Run | Yrd Mat Min Sub Mat Gar Mat Active Infowar (turns) 1025 | 40 204 184 217 380 . . Terrain 1025 | 40 204 184 217 380 . . Robot Analysis Total . | . . . . . . . Derelict Logs Recovered 1 | . . 1 . . . . Drone Launches . | . . . . . . . Drone Recoveries . | . . . . . . . Exploration | -11 -10 -10 -10 -8 -8 -8 ------------- Run | Yrd Mat Min Sub Mat Gar Mat Turns Passed 3714 | 158 204 184 217 444 2073 434 Spaces Moved 1703 | 72 167 189 151 119 864 141 Core 4 | 4 . . . . . . Treads 743 | 68 . . . 18 516 141 Legs . | . . . . . . . Wheels 956 | . 167 189 151 101 348 . Hover . | . . . . . . . Flight . | . . . . . . . Fastest Speed 50 | 50 80 80 80 80 107 240 Average Speed 148 | 155 80 80 80 120 174 248 Slowest Speed 250 | 160 80 80 80 240 240 250 Overloaded Moves . | . . . . . . . Propulsion Burnouts . | . . . . . . . Robots Hopped . | . . . . . . . Potential Cave-ins . | . . . . . . . Cave-ins Triggered . | . . . . . . . Exploration Rate (%) 29 | 5 28 55 8 12 81 20 Regions Visited 6 Branch Regions 2 Pre-discovered Areas 1 | . . 1 . . . . Known Exits Taken 2 | . 1 . . 1 . . Unknown Exits Taken 3 | 1 . 1 1 . . . Scrap Searched . | . . . . . . . Spaces Dug . | . . . . . . . Terrain Destroyed 24 | . . . . . 11 13 Melee . | . . . . . . . Projectile 3 | . . . . . . 3 AOE 21 | . . . . . 11 10 Terrain Rammed . | . . . . . . . Walls Destroyed . | . . . . . . . Machines Disabled . | . . . . . . . Actions | -11 -10 -10 -10 -8 -8 -8 --------- Run | Yrd Mat Min Sub Mat Gar Mat Total 2545 | 99 213 221 240 394 1185 193 Wait 427 | . 12 33 84 243 38 17 Move 1698 | 71 166 188 150 119 863 141 Hop . | . . . . . . . Pick Up 51 | 8 5 . 1 7 26 4 Fast Attach 27 | 8 2 . . 4 11 2 Attach 27 | . 4 . . 6 17 . Detach 4 | 1 . . . 2 1 . Swap 19 | . . . 1 1 14 3 Drop 34 | 1 6 . 1 1 18 7 Fire 139 | 10 16 . 3 11 81 18 Melee 36 | . . . . . 36 . Ram 2 | . 2 . . . . . Kick . | . . . . . . . Crush 1 | . . . . . . 1 Escape Stasis 71 | . . . . . 71 . Rewire 9 | . . . . . 9 . Trap . | . . . . . . . Miscellaneous . | . . . . . . . Route ------- -11/Scrapyard -10/Materials -10/Mines (discovered 2 exits: Mat / *Sub) -10/Subcaves (discovered 2 exits: *Mat x2) -8/Materials (discovered 2 exits: Sto / Gar) -8/Garrison (discovered 3 exits: [*Mat x3]) -8/Materials History --------- Turn | Location | Event 2 | -11/Scrapyard | Met Revision 17 29 | -11/Scrapyard | Discovered new exit (range 16) 159 | -11/Scrapyard | Entered Materials 173 | -10/Materials | Identified exit to Mines 323 | -10/Materials | Build established: Mutant 363 | -10/Materials | Entered Mines 364 | -10/Mines | Learned location of Storage (-8) 410 | -10/Mines | Identified exit to Materials 423 | -10/Mines | Assisted by bots powering up and referring to "LRC-V3" 515 | -10/Mines | Discovered new exit (range 15) 547 | -10/Mines | Entered Subcaves 547 | -10/Subcaves | Accompanied by 3 allies 557 | -10/Subcaves | Discovered new exit (range 5) 591 | -10/Subcaves | Discovered new exit (range 9) 764 | -10/Subcaves | Entered Materials 764 | -8/Materials | Accompanied by 3 allies 764 | -8/Materials | Evolved 4 slots: Utility x3, Weapon x1 780 | -8/Materials | Identified exit to Storage 1065 | -8/Materials | Build established: Gunner 1094 | -8/Materials | Garrison activated, responded to threat 1175 | -8/Materials | Lost 3 parts (2n1u) 1206 | -8/Materials | Identified exit to Garrison 1208 | -8/Materials | Entered Garrison 1208 | -8/Garrison | Accompanied by 1 ally 1376 | -8/Garrison | Triggered checkpoint 1388 | -8/Garrison | Garrison Relay disabled 1435 | -8/Garrison | Lost 4 parts (2n1u1w) 1596 | -8/Garrison | Triggered checkpoint 1656 | -8/Garrison | Triggered checkpoint 1670 | -8/Garrison | Lost 3 parts (1u2w) 1748 | -8/Garrison | Discovered new exit (range 13) 1770 | -8/Garrison | Triggered checkpoint 1808 | -8/Garrison | Core integrity fell below 50% 1851 | -8/Garrison | Lost 4 parts (1p2n1u) 2164 | -8/Garrison | Discovered new exit (range 11) 2173 | -8/Garrison | Rescued a captive Derelict 2174 | -8/Garrison | Rescued a captive Derelict 2198 | -8/Garrison | Triggered checkpoint 2350 | -8/Garrison | Triggered checkpoint 2358 | -8/Garrison | Build established: Scavenger-Gunner 2508 | -8/Garrison | Triggered checkpoint 2737 | -8/Garrison | Core integrity fell below 20% 2938 | -8/Garrison | Garrison Relay disabled 2942 | -8/Garrison | Garrison Relay disabled 2942 | -8/Garrison | Garrison Relay disabled 2946 | -8/Garrison | Garrison Relay disabled 3005 | -8/Garrison | Discovered new exit (range 8) 3174 | -8/Garrison | Triggered checkpoint 3281 | -8/Garrison | Entered Materials 3594 | -8/Materials | Garrison activated, responded to threat 3715 | -8/Materials | Destroyed by G-47 Trooper with Particle Gun Last Messages --------------- 03699_ S-10 Pest destroyed. 03699_ Y-45 Defender destroyed. 03699_ U-05 Engineer lays Concrete. 03699_ K-01 Serf collects debris. 03699_ U-05 Engineer lays Concrete. 03702_ K-01 Serf collects debris. 03703_ U-05 Engineer lays Concrete. 03706_ Imp. Medium Armor Plating destroyed. 03706_ K-01 Serf collects debris. 03706_ U-05 Engineer lays Concrete. 03709_ R-06 Scavenger collects Lgt. Ion Engine. 03709_ U-05 Engineer lays Concrete. 03710_ K-01 Serf collects debris. 03711_ U-05 Engineer lays Concrete. 03713_ R-06 Scavenger collects Lgt. Treads. 03714_ U-05 Engineer lays Concrete. 03714_ K-01 Serf collects debris. 03714_ U-05 Engineer lays Concrete. 03715_ Imp. Medium Armor Plating destroyed. 03715_ U-05 Engineer lays Concrete. Map ----- +----------------------------------------------------+ | ?????????????????????????????? #####+#### | | ????????????????????????????? # | | ????????????????????????????? # | | ????????????????????????????? # | | ?????????????????????????????" ##### | | ?????????????????????????????" ######## #???? | | ?????????????????????????????????????????# #???? | | ?????????????????????????????????????????# +???? | | ?????????????????????????????????????????# #???? | | ?????????????????????????????????????????# +???? | | ??????????????????????? ???????# #???? | | ????????????????????? #??????# #???? | | ??????????????????;[ #??????# ##### | | ??????????????????;[ #??????# | | ??????????????????#s[[ #??????# | | ??????????????????#[[ +??????# """ | | ??????????????????#= * #??????# "G" | | ??????????????????# #??????# " " | | ??????????????????# #??????#^ | | ??????????????????# u k #??????# | | ??????????????????# #??????# | | ??????????????????# w ##?????#! | | ??????????????????# ! ######## | | ??????????????????# % u !%* g % = | | ?????????????????##% = g % | | ?????????? !% r% @ g ! | | ?????????????????############## ############### | | ??????????????????????????### # #?????????#== | | ??????????????????????#####"### #?????????#== | | ??????????????????????# !%! #?????????#!! | | ??????????????????????# #= #?????????#!! | | ??????????????????????# =# #?????????#** | | ??????????????????????######""" #?????????#* * | | ???????????????????????######## #?????????##### | | ???????????????????????# # #???########### | | ???????????????????????# """ |# #???# # | | ???????????????????????# """ # ##### # | | ???????????????????????# """ # + ! # | | ???????????????????????# + ##### ! +! | | ???????????????????????#! ! # #???# [ # | | ?????????????H?????????#########+###### # | | ????????????????????????????# # ! # | | ????????????????????????????# """ # # | | ????????????????????????????# """"" #######+### | | ????????????????????????????# """"" #?????# #?# | | ????????????????????????????# """"" #????## ### | | ????????????????????????????# """ ###### | | ????????????????????????????# + | | ????????????????????????????+ ########+### | | ????????????????????????????###########??# | +----------------------------------------------------+ Best States ------------- Heat Dissipation 59 Energy Generation 16 Energy Capacity 290 Matter Stores 300 Matter Capacity 300 Sight Range 16 Terrain Scan Range 16 Terrain Scan Density 10 Armor Coverage 600 Core Shielding 20 Evasion (%) 44 Targeting Accuracy 8 Recoil Reduction 2 Item Schematics ----------------- Hcp. Battery | -10/Materials | Hacked Grenade Launcher | -8/Materials | Hacked Robot Schematics ------------------ None Fabricated ------------ Nothing Repaired ---------- Nothing Studied --------- None Alien Tech Used ----------------- None Achievements -------------- None Challenges ------------ None Game ------ Seed DeepTransmissionLeg Manual? 0 Play Time 00:28:04 Cumulative 96.2 hours Start 2025.11.22 @ 16:59:56 End 2025.11.22 @ 17:28:38 Sessions 1 Manual Loads 0 Difficulty Rogue Special Mode None Game No. 138 Rogue 138 Adventurer 0 Explorer 0 Win Type - Total 1 Types 1/0/0/0/0/0/0/0/0/0 Lore% 57 Gallery% 53 Achievement% 39 Wizard Run 0 Options --------- Layout 2 ASCII 0 Keyboard 0 Movement Vi Keybinds 0 Fullscreen 1 Font 16/SmallcapsGlow Map View 50x44 Zoom Use 0% Tactical HUD 1 Map Filters NONE Filters NONE Steam SD RUN: 820e31cf-6f09-4267-aa91-3d227312c71d